Workbook

Sheet Index
C6: M/M/s
C7: M/M/s/K (finite capacity)
C8: M/M/s/U (finite population)
C9: M/G/1
C10: M/D/1
C11: M/Ek/1
C12: M/M/s with non-preemptive priorities
C13: M/M/1 with preemptive priorities

Sheet M|M|s
A1: M/M/s
B4: l = | C4: 100 | D4: Avg. frequency of arrivals | F4: N = | G4: =IF(G10<1,G5+C4/C5,NA()) -> 1.739863678
B5: m = | C5: 60 | D5: Avg. frequency of completions | F5: Nq = | G5: =IF(G10<1,C4*C5*((C4/C5)^C6)/(FACT(C6-1)*(C6*C5-C4)^2/G12),NA()) -> 0.07319701122
B6: s = | C6: 4 | D6: Number of servers
F7: T = | G7: =IF(G10<1,G4/C4,NA()) -> 0.01739863678
B8: Prob(T > t) = | C8: =IF((C6-1-C4/C5)=0,EXP(-C5*C9)*(1+G12*((C4/C5)^C6)/(FACT(C6)*(1-G10))*C5*C9),EXP(-C5*C9)*(1+G12*((C4/C5)^C6)/(FACT(C6)*(1-G10))*(1-EXP(-C5*C9*(C6-1-C4/C5)))/(C6-1-C4/C5))) -> 9.4295087e-27 | F8: Tq = | G8: =IF(G10<1,G5/C4,NA()) -> 0.0007319701122
B9: for t = | C9: 1 | E9: =IF(G10>=1,"Model invalid because:","") -> 
E10: =IF(G10>=1," r >= 1","") ->  | F10: r = | G10: =C4/(C6*C5) -> 0.4166666667
B11: Prob(Tq > t) = | C11: =(1-SUM(OFFSET(G12,0,0,C6,1)))*EXP(-C6*C5*(1-G10)*C12) -> 0.1024758157
A12: 0 | B12: for t = | C12: 0 | F12: P0 = | G12: =IF(G10<1,1/(sumxpf(C4/C5,0,C6-1)+((C4/C5)^C6)/(FACT(C6)*(1-C4/(C6*C5)))),NA()) -> 0.18593212
A13: 1 | F13: P1 = | G13: =IF(G10<1,IF($C$6=1,(1-$G$10)*$G$10^ROW(G1),IF($C$6>=ROW(G1),(($C$4/$C$5)^ROW(G1))*$G$12/FACT(ROW(G1)),(($C$4/$C$5)^ROW(G1))*$G$12/(FACT($C$6)*($C$6^(ROW(G1)-$C$6))))),NA()) -> 0.3098868667
A14: 2 | F14: P2 = | G14: 0.2582390556
A15: 3 | F15: P3 = | G15: 0.143466142
A16: 4 | F16: P4 = | G16: 0.05977755916
A17: 5 | F17: P5 = | G17: 0.02490731632
A18: 6 | F18: P6 = | G18: 0.01037804847
A19: 7 | F19: P7 = | G19: 0.004324186861
A20: 8 | F20: P8 = | G20: 0.001801744525
A21: 9 | F21: P9 = | G21: 0.0007507268855
A22: 10 | F22: P10 = | G22: 0.000312802869
A23: 11 | F23: P11 = | G23: 0.0001303345287
A24: 12 | F24: P12 = | G24: 5.430605364e-05
A25: 13 | F25: P13 = | G25: 2.262752235e-05
A26: 14 | F26: P14 = | G26: 9.428134313e-06
A27: 15 | F27: P15 = | G27: 3.928389297e-06
A28: 16 | F28: P16 = | G28: 1.636828874e-06
A29: 17 | F29: P17 = | G29: 6.820120307e-07
A30: 18 | F30: P18 = | G30: 2.841716795e-07
A31: 19 | F31: P19 = | G31: 1.184048664e-07
A32: 20 | F32: P20 = | G32: 4.933536102e-08
A33: 21 | F33: P21 = | G33: 2.055640042e-08
A34: 22 | F34: P22 = | G34: 8.565166844e-09
A35: 23 | F35: P23 = | G35: 3.568819518e-09
A36: 24 | F36: P24 = | G36: 1.487008133e-09
A37: 25 | F37: P25 = | G37: 6.195867219e-10

Sheet M|M|s|K
A1: M/M/s/K (finite capacity)
B4: l = | C4: 10 | D4: Avg. frequency of arrivals | F4: N = | G4: =sumnarray(G12:G37,0,MIN(C6,C7)-1,0)+G5+MIN(C6,C7)*(1-sumarray(G12:G37,0,MIN(C6,C7)-1)) -> 0.479338843
B5: m = | C5: 30 | D5: Avg. frequency of completions | F5: Nq = | G5: =IF(G10=1,sumnarray(G12:G37,C6,C7,C6),G12*((C4/C5)^MIN(C6,C7))*G10/(FACT(MIN(C6,C7))*(1-G10)^2)*(1-(G10^(C7-MIN(C6,C7)))-(C7-MIN(C6,C7))*(G10^(C7-MIN(C6,C7)))*(1-G10))) -> 0.1487603306
B6: s = | C6: 1 | D6: Number of servers
B7: K = | C7: 4 | D7: Max. number of users (capacity) | F7: T = | G7: =G4/(C4*(1-(((C4/C5)^C7)/(FACT(MIN(C6,C7))*MIN(C6,C7)^(C7-MIN(C6,C7)))*G12))) -> 0.04833333333
F8: Tq = | G8: =G5/(C4*(1-(((C4/C5)^C7)/(FACT(MIN(C6,C7))*MIN(C6,C7)^(C7-MIN(C6,C7)))*G12))) -> 0.015
F10: r = | G10: =C4/(MIN(C6,C7)*C5) -> 0.3333333333
F12: P0 = | G12: =IF(C7>=C6+1,1/(1+(sumxpf(C4/C5,1,C6)+((C4/C5)^C6)/FACT(C6)*sumxp(C4/(C6*C5),C6+1,C7))),1/(1+sumxpf(C4/C5,1,MIN(C6,C7)))) -> 0.6694214876
F13: P1 = | G13: =IF(ROW(G1)>$C$7,0,IF(ROW(G1)>=MIN($C$6,$C$7),(($C$4/$C$5)^ROW(G1))/(FACT(MIN($C$6,$C$7))*(MIN($C$6,$C$7)^(ROW(G1)-MIN($C$6,$C$7))))*$G$12,(($C$4/$C$5)^ROW(G1))/FACT(ROW(G1))*$G$12)) -> 0.2231404959
F14: P2 = | G14: =IF(ROW(G2)>$C$7,0,IF(ROW(G2)>=MIN($C$6,$C$7),(($C$4/$C$5)^ROW(G2))/(FACT(MIN($C$6,$C$7))*(MIN($C$6,$C$7)^(ROW(G2)-MIN($C$6,$C$7))))*$G$12,(($C$4/$C$5)^ROW(G2))/FACT(ROW(G2))*$G$12)) -> 0.07438016529
F15: P3 = | G15: 0.02479338843
F16: P4 = | G16: 0.00826446281
F17: P5 = | G17: 0
F18: P6 = | G18: 0
F19: P7 = | G19: 0
F20: P8 = | G20: 0
F21: P9 = | G21: 0
F22: P10 = | G22: 0
F23: P11 = | G23: 0
F24: P12 = | G24: 0
F25: P13 = | G25: 0
F26: P14 = | G26: 0
F27: P15 = | G27: 0
F28: P16 = | G28: 0
F29: P17 = | G29: 0
F30: P18 = | G30: 0
F31: P19 = | G31: 0
F32: P20 = | G32: 0
F33: P21 = | G33: 0
F34: P22 = | G34: 0
F35: P23 = | G35: 0
F36: P24 = | G36: 0
F37: P25 = | G37: 0

Sheet M|M|s|N
A1: M/M/s/N (finite population)
B4: l = | C4: 0.2 | D4: Avg. frequency of arrivals | F4: N = | G4: =sumnarray(G13:G38,0,MIN(C6,C7)-1,0)+G5+MIN(C6,C7)*(1-sumarray(G13:G38,0,MIN(C6,C7)-1)) -> 1.424339107
B5: m = | C5: 1 | D5: Avg. frequency of completions | F5: Nq = | G5: =sumnarray(G13:G38,MIN(C6,C7),C7,MIN(C6,C7)) -> 0.709206928
B6: s = | C6: 1 | D6: Number of servers
B7: U = | C7: 5 | D7: Size of the population | F7: T = | G7: =G4/(C4*(C7-G4)) -> 1.991714468
F8: Tq = | G8: =G5/(C4*(C7-G4)) -> 0.9917144678
F10: r = | G10: =C4*C7/(C6*C5) -> 1
F11: l-bar = | G11: =C4*(C7-G4) -> 0.7151321787 | H11: WRONG | I11: =G11/(C6*C5) -> 0.7151321787 | J11: RIGHT
A13: 0 | F13: P0 = | G13: =1/(finitepop(C4/C5,MIN(C6,C7),C7)) -> 0.2848678213
A14: 1 | F14: P1 = | G14: =IF(ROW(G1)<=MIN($C$6,$C$7),FACT($C$7)*(($C$4/$C$5)^ROW(G1))*$G$13/(FACT($C$7-ROW(G1))*FACT(ROW(G1))),IF(ROW(G1)<=$C$7,FACT($C$7)*(($C$4/$C$5)^ROW(G1))*$G$13/(FACT($C$7-ROW(G1))*FACT($C$6)*($C$6^(ROW(G1)-$C$6))),0)) -> 0.2848678213
A15: 2 | F15: P2 = | G15: =IF(ROW(G2)<=MIN($C$6,$C$7),FACT($C$7)*(($C$4/$C$5)^ROW(G2))*$G$13/(FACT($C$7-ROW(G2))*FACT(ROW(G2))),IF(ROW(G2)<=$C$7,FACT($C$7)*(($C$4/$C$5)^ROW(G2))*$G$13/(FACT($C$7-ROW(G2))*FACT($C$6)*($C$6^(ROW(G2)-$C$6))),0)) -> 0.2278942571
A16: 3 | F16: P3 = | G16: 0.1367365542
A17: 4 | F17: P4 = | G17: 0.0546946217
A18: 5 | F18: P5 = | G18: 0.01093892434
A19: 6 | F19: P6 = | G19: 0
A20: 7 | F20: P7 = | G20: 0
A21: 8 | F21: P8 = | G21: 0
A22: 9 | F22: P9 = | G22: 0
A23: 10 | F23: P10 = | G23: 0
A24: 11 | F24: P11 = | G24: 0
A25: 12 | F25: P12 = | G25: 0
A26: 13 | F26: P13 = | G26: 0
A27: 14 | F27: P14 = | G27: 0
A28: 15 | F28: P15 = | G28: 0
A29: 16 | F29: P16 = | G29: 0
A30: 17 | F30: P17 = | G30: 0
A31: 18 | F31: P18 = | G31: 0
A32: 19 | F32: P19 = | G32: 0
A33: 20 | F33: P20 = | G33: 0
A34: 21 | F34: P21 = | G34: 0
A35: 22 | F35: P22 = | G35: 0
A36: 23 | F36: P23 = | G36: 0
A37: 24 | F37: P24 = | G37: 0
A38: 25 | F38: P25 = | G38: 0

Sheet M|G|1
A1: M/G/1
C3: Data | F3: Results
B4: l = | C4: 3 | D4: Avg. frequency of arrivals | F4: N = | G4: =IF(G10<1,G5+C4*C5,NA()) -> 1.1625
B5: 1/m = | C5: 0.2 | D5: Avg. service time | F5: Nq = | G5: =IF(G10<1,((C4^2)*(C6^2)+(G10^2))/(2*(1-G10)),NA()) -> 0.5625
B6: s = | C6: 0.1 | D6: Standard deviation of service time
B7: s = | C7: 1 | D7: Number of servers | F7: T = | G7: =IF(G10<1,G4/C4,NA()) -> 0.3875
F8: Tq = | G8: =IF(G10<1,G5/C4,NA()) -> 0.1875
D10: =IF(G10>=1,"Model invalid because:","") ->  | F10: r = | G10: =C4*C5 -> 0.6
D11: =IF(G10>=1," r >= 1","") -> 
F12: P0 = | G12: =IF(G10<1,1-G10,NA()) -> 0.4

Sheet M|D|1
A1: M/D/1
C3: Data | F3: Results
B4: l = | C4: 20 | D4: Avg. frequency of arrivals | F4: N= | G4: =IF(G10<1,G5+C4/C5,NA()) -> 1.333333333
B5: m = | C5: 30 | D5: Avg. frequency of completions | F5: Nq = | G5: =IF(G10<1,(G10^2)/(2*(1-G10)),NA()) -> 0.6666666667
B6: s = | C6: 1 | D6: Number of servers
F7: T = | G7: =IF(G10<1,G4/C4,NA()) -> 0.06666666667
F8: Tq = | G8: =IF(G10<1,G5/C4,NA()) -> 0.03333333333
D10: =IF(G10>=1,"Model invalid because:","") ->  | F10: r = | G10: =C4/C5 -> 0.6666666667
D11: =IF(G10>=1," r >= 1","") -> 
F12: P0 = | G12: =IF(G10<1,1-G10,NA()) -> 0.3333333333

Sheet M|E|1
A1: M/Ek/1
C3: Data | F3: Results
B4: l = | C4: 1 | D4: Avg. frequency of arrivals | F4: N = | G4: =IF(G10<1,G5+C4/C5,NA()) -> 1
B5: m = | C5: 2 | D5: Avg. frequency of completions | F5: Nq = | G5: =IF(G10<1,(C6+1)/(2*C6)*(G10^2)/(1-G10),NA()) -> 0.5
B6: k = | C6: 1 | D6: Shape parameter
B7: s = | C7: 1 | D7: Number of servers | F7: T = | G7: =IF(G10<1,G4/C4,NA()) -> 1
F8: Tq = | G8: =IF(G10<1,G5/C4,NA()) -> 0.5
D10: =IF(G10>=1,"Model invalid because:","") ->  | F10: r = | G10: =C4/C5 -> 0.5
D11: =IF(G10>=1," r >= 1","") -> 
F12: P0 = | G12: =IF(G10<1,1-G10,NA()) -> 0.5

Sheet Non-preemptive priorities
A1: M/M/s with non-preemptive priorities
B4: Nc = | C4: 3 | D4: N. of priority classes
B5: m = | C5: 3 | D5: Avg. freq. of completions
B6: s = | C6: 2 | D6: Number of servers
C9: li | D9: N | E9: Nq | F9: T | G9: Tq
B10: =IF($C$4>=1,"Priority Class 1","") -> Priority Class 1 | C10: 0.2 | D10: =IF(C4>=1,F10*C10,"") -> 0.0724137931 | E10: =IF(C4>=1,G10*C10,"") -> 0.005747126437 | F10: =IF(C4>=1,1/((FACT(C6)*((C5*C6)-C15)/((C15/C5)^C6)*sumxpf(C15/C5,0,C6-1)+C5*C6)*(1-C10/(C5*C6)))+1/C5,"") -> 0.3620689655 | G10: =IF(C4>=1,F10-1/C5,"") -> 0.02873563218
B11: =IF($C$4>=2,"Priority Class 2","") -> Priority Class 2 | C11: 0.6 | D11: =IF(C4>=2,F11*C11,"") -> 0.2198938992 | E11: =IF(C4>=2,G11*C11,"") -> 0.0198938992 | F11: =IF(C4>=2,1/((FACT(C6)*((C5*C6)-C15)/((C15/C5)^C6)*sumxpf(C15/C5,0,C6-1)+C5*C6)*(1-C10/(C5*C6))*(1-SUM(C10:C11)/(C5*C6)))+1/C5,"") -> 0.366489832 | G11: =IF(C4>=2,F11-1/C5,"") -> 0.03315649867
B12: =IF($C$4>=3,"Priority Class 3","") -> Priority Class 3 | C12: 1.2 | D12: =IF(C4>=3,F12*C12,"") -> 0.4576923077 | E12: =IF(C4>=3,G12*C12,"") -> 0.05769230769 | F12: =IF(C4>=3,1/((FACT(C6)*((C5*C6)-C15)/((C15/C5)^C6)*sumxpf(C15/C5,0,C6-1)+C5*C6)*(1-SUM(C10:C11)/(C5*C6))*(1-SUM(C10:C12)/(C5*C6)))+1/C5,"") -> 0.3814102564 | G12: =IF(C4>=3,F12-1/C5,"") -> 0.04807692308
B13: =IF($C$4>=4,"Priority Class 4","") ->  | D13: =IF(C4>=4,F13*C13,"") ->  | E13: =IF(C4>=4,G13*C13,"") ->  | F13: =IF(C4>=4,1/((FACT(C6)*((C5*C6)-C15)/((C15/C5)^C6)*sumxpf(C15/C5,0,C6-1)+C5*C6)*(1-SUM(C10:C12)/(C5*C6))*(1-SUM(C10:C13)/(C5*C6)))+1/C5,"") ->  | G13: =IF(C4>=4,F13-1/C5,"") -> 
B14: =IF($C$4>=5,"Priority Class 5","") ->  | D14: =IF(C4>=5,F14*C14,"") ->  | E14: =IF(C4>=5,G14*C14,"") ->  | F14: =IF(C4>=5,1/((FACT(C6)*((C5*C6)-C15)/((C15/C5)^C6)*sumxpf(C15/C5,0,C6-1)+C5*C6)*(1-SUM(C10:C13)/(C5*C6))*(1-SUM(C10:C14)/(C5*C6)))+1/C5,"") ->  | G14: =IF(C4>=5,F14-1/C5,"") -> 
B15: l = | C15: =C16*C5*C6 -> 2
B16: r = | C16: =IF(C4=1,C10/(C6*C5),IF(C4=2,SUM(C10:C11)/(C5*C6),IF(C4=3,SUM(C10:C12)/(C6*C5),IF(C4=4,SUM(C10:C13)/(C5*C6),IF(C4=5,SUM(C10:C14)/(C5*C6)))))) -> 0.3333333333 | E16: =IF(C16>=1,"Model invalid because:","") -> 
E17: =IF(C16>=1," r >= 1","") -> 

Sheet Preemptive priorities
A1: M/M/1 with preemptive priorities
B4: Nc = | C4: 3 | D4: N. of priority classes
B5: m = | C5: 3 | D5: Avg. freq. of completions
B6: s = | C6: 1 | D6: Number of servers
C9: li | D9: N | E9: Nq | F9: T | G9: Tq
B10: =IF($C$4>=1,"Priority Class 1","") -> Priority Class 1 | C10: 0.2 | D10: =IF(C4>=1,F10*C10,"") -> 0.07142857143 | E10: =IF(C4>=1,G10*C10,"") -> 0.004761904762 | F10: =IF(C4>=1,1/C5/(1-C10/C5),"") -> 0.3571428571 | G10: =IF(C4>=1,F10-1/C5,"") -> 0.02380952381 | H10: =(1-C10/(C5*C6)) -> 0.9333333333
B11: =IF($C$4>=2,"Priority Class 2","") -> Priority Class 2 | C11: 0.6 | D11: =IF(C4>=2,F11*C11,"") -> 0.2922077922 | E11: =IF(C4>=2,G11*C11,"") -> 0.09220779221 | F11: =IF(C4>=2,1/C5/((1-C10/C5)*(1-SUM(C10:C11)/C5)),"") -> 0.487012987 | G11: =IF(C4>=2,F11-1/C5,"") -> 0.1536796537 | H11: =(1-SUM(C10:C11)/(C5*C6)) -> 0.7333333333
B12: =IF($C$4>=3,"Priority Class 3","") -> Priority Class 3 | C12: 1.2 | D12: =IF(C4>=3,F12*C12,"") -> 1.636363636 | E12: =IF(C4>=3,G12*C12,"") -> 1.236363636 | F12: =IF(C4>=3,1/C5/((1-SUM(C10:C11)/C5)*(1-SUM(C10:C12)/C5)),"") -> 1.363636364 | G12: =IF(C4>=3,F12-1/C5,"") -> 1.03030303 | H12: =(1-SUM(C10:C12)/(C5*C6)) -> 0.3333333333
B13: =IF($C$4>=4,"Priority Class 4","") ->  | D13: =IF(C4>=4,F13*C13,"") ->  | E13: =IF(C4>=4,G13*C13,"") ->  | F13: =IF(C4>=4,1/C5/((1-SUM(C10:C12)/C5)*(1-SUM(C10:C13)/C5)),"") ->  | G13: =IF(C4>=4,F13-1/C5,"") ->  | H13: =(1-SUM(C10:C13)/(C5*C6)) -> 0.3333333333
B14: =IF($C$4>=5,"Priority Class 5","") ->  | D14: =IF(C4>=5,F14*C14,"") ->  | E14: =IF(C4>=5,G14*C14,"") ->  | F14: =IF(C4>=5,1/C5/((1-SUM(C10:C13)/C5)*(1-SUM(C10:C14)/C5)),"") ->  | G14: =IF(C4>=5,F14-1/C5,"") ->  | H14: =(1-SUM(C10:C14)/(C5*C6)) -> 0.3333333333
B15: l = | C15: =C16*C5 -> 2
B16: r = | C16: =IF(C4=1,C10/C5,IF(C4=2,SUM(C10:C11)/C5,IF(C4=3,SUM(C10:C12)/C5,IF(C4=4,SUM(C10:C13)/C5,IF(C4=5,SUM(C10:C14)/C5))))) -> 0.6666666667 | E16: =IF(C16>=1,"Model invalid because:","") -> 
E17: =IF(C16>=1," r >= 1","") -> 
